bitfinex-derivatives/quotes_BTCF0:USTF0_20260106
["timestamp","ask_amount","ask_price","bid_price","bid_amount"]
[1767681183952,0.18765896,93898.0,93884.0,0.010654]
[1767681184260,0.19708894,93898.0,93884.0,0.010654]
[1767681184446,0.18765896,93898.0,93884.0,0.010654]
[1767681184650,9.6e-07,93899.0,93888.0,0.10784467]
[1767681184852,0.09056,93902.0,93891.0,0.00966643]
[1767681185249,0.09056,93902.0,93893.0,0.010652]
[1767681185751,0.09709896,93914.0,93895.0,0.010652]
[1767681185752,0.09056,93905.0,93895.0,0.010652]
[1767681185951,0.09056,93905.0,93891.0,0.010653]
[1767681186149,0.09056,93905.0,93893.0,0.010652]
[1767681186640,0.09056,93905.0,93892.0,0.00966643]
[1767681187146,0.36608,93920.0,93889.0,0.00015982]
[1767681187147,0.09056,93917.0,93898.0,0.010652]
[1767681187350,0.09998998,93916.0,93905.0,0.010651]
[1767681187651,0.09998998,93916.0,93909.0,0.010651]
[1767681188553,0.09998998,93916.0,93906.0,0.010651]
[1767681188856,0.09998998,93916.0,93898.0,0.010652]
[1767681189550,0.09998998,93916.0,93906.0,0.010651]
[1767681189749,0.09998998,93916.0,93898.0,0.010652]
[1767681190146,0.09056,93916.0,93899.0,0.00966643]
[1767681190350,0.09056,93916.0,93898.0,0.10453556]
[1767681190351,0.09056,93916.0,93898.0,0.11420199]
[1767681190554,0.09056,93916.0,93906.0,0.010651]
[1767681190754,0.09998998,93916.0,93903.0,0.010651]
[1767681191054,0.09998998,93916.0,93905.0,0.010651]
[1767681191355,0.09998998,93916.0,93908.0,0.010651]
[1767681191959,0.09056,93916.0,93910.0,0.010651]
[1767681192653,0.09709896,93925.0,93910.0,0.010651]
[1767681192955,0.09709896,93925.0,93906.0,0.00966643]
[1767681193152,0.09056,93927.0,93913.0,0.01065]
[1767681193351,0.00212928,93929.0,93913.0,0.01065]
[1767681193553,0.09268928,93929.0,93913.0,0.01065]
[1767681194060,0.19921822,93929.0,93913.0,0.01065]
[1767681194354,0.19921822,93929.0,93909.0,0.00966643]
[1767681194355,0.00212928,93929.0,93912.0,0.00966643]
[1767681194549,0.00212928,93929.0,93917.0,0.01065]
[1767681194744,0.00212928,93929.0,93920.0,0.010649]
[1767681195354,0.00212928,93929.0,93917.0,0.01065]
[1767681195742,0.00212928,93929.0,93919.0,0.01065]
[1767681196151,0.00212928,93929.0,93912.0,0.00966643]
[1767681196546,0.00212928,93929.0,93915.0,0.01065]
[1767681196953,0.00212928,93929.0,93910.0,0.02031743]
[1767681197150,0.01277828,93929.0,93912.0,0.00966643]
[1767681197355,0.00942998,93913.0,93906.0,0.00015973]
[1767681197551,0.00942998,93913.0,93895.0,0.09056]
[1767681197859,0.00942998,93913.0,93897.0,0.010652]
[1767681198044,0.00942998,93913.0,93895.0,0.09056]
[1767681198249,0.09709896,93914.0,93896.0,0.00966643]
[1767681198555,0.00942998,93917.0,93897.0,0.00966643]
[1767681198952,0.10652894,93917.0,93897.0,0.00966643]
[1767681199260,0.10652894,93917.0,93904.0,0.010651]
[1767681199556,0.09056,93920.0,93906.0,0.010651]
[1767681199752,0.00942998,93919.0,93906.0,0.010651]
[1767681201257,0.00942998,93919.0,93903.0,0.010651]
[1767681201453,0.10652894,93916.0,93895.0,0.10022643]
[1767681201653,0.10652894,93913.0,93901.0,0.010652]
[1767681202550,0.09709896,93913.0,93901.0,0.010652]
[1767681203354,0.10652894,93913.0,93901.0,0.010652]
[1767681203554,0.010649,93924.0,93909.0,0.010651]
[1767681203862,0.09056,93923.0,93911.0,0.01065]
[1767681204052,0.09709896,93926.0,93911.0,0.01065]
[1767681204251,0.09056,93925.0,93908.0,0.010651]
[1767681204458,0.19708894,93925.0,93908.0,0.010651]
[1767681204658,0.10652894,93924.0,93908.0,0.010651]
[1767681205160,0.10652894,93924.0,93910.0,0.010651]
[1767681205361,0.11717794,93924.0,93907.0,0.010651]
[1767681205561,0.10652894,93921.0,93907.0,0.010651]
[1767681206562,0.09709896,93921.0,93907.0,0.010651]
[1767681207052,0.09709896,93921.0,93904.0,0.00966643]
[1767681207451,0.09709896,93921.0,93898.0,0.09388356]
[1767681207452,0.10652894,93916.0,93897.0,0.010652]
[1767681207656,0.01065,93915.0,93899.0,0.010652]
[1767681207856,0.10652894,93916.0,93901.0,0.010652]
[1767681208255,0.01065,93919.0,93902.0,0.010651]
[1767681209263,0.09709896,93922.0,93901.0,0.00966643]
[1767681209469,0.09056,93923.0,93910.0,0.02031743]
[1767681209664,0.09056,93923.0,93910.0,0.00966643]
[1767681209865,0.19708894,93923.0,93906.0,0.010651]
[1767681210071,0.19708894,93923.0,93901.0,0.09388356]
[1767681210072,0.10652894,93921.0,93902.0,0.02031743]
[1767681210270,0.01065,93920.0,93904.0,0.010651]
[1767681210972,0.01065,93918.0,93901.0,0.010652]
[1767681211163,0.10054253,93915.0,93898.0,0.010652]
[1767681211873,0.10054253,93915.0,93902.0,0.010651]
[1767681212169,0.02053905,93918.0,93902.0,0.010651]
[1767681212373,0.02053905,93918.0,93899.0,0.00930641]
[1767681213070,0.00988905,93918.0,93899.0,0.00930641]
[1767681213271,0.10130248,93921.0,93904.0,0.010651]
[1767681213472,0.00988905,93920.0,93906.0,0.010651]
[1767681213772,0.09065348,93921.0,93908.0,0.010651]
[1767681214769,0.09065348,93921.0,93905.0,0.010651]
[1767681215162,0.01065,93920.0,93902.0,0.010652]
[1767681217061,0.01065,93920.0,93902.0,0.010651]
[1767681217472,0.02053905,93920.0,93902.0,0.010651]
[1767681217668,0.11119253,93914.0,93899.0,0.010652]
[1767681217866,0.10054253,93912.0,93898.0,0.010652]
[1767681218066,0.09065348,93912.0,93900.0,0.16036534]
[1767681218266,0.00988905,93916.0,93900.0,0.010652]
[1767681218675,0.00988905,93916.0,93901.0,0.15968588]
[1767681218973,0.10130348,93917.0,93901.0,0.15968588]
[1767681219272,0.10130348,93917.0,93902.0,0.010652]
[1767681219669,0.09065348,93917.0,93898.0,0.00930641]
[1767681219870,0.09065348,93917.0,93905.0,0.010651]
[1767681222173,0.00988905,93920.0,93905.0,0.010651]
[1767681222373,0.00988905,93920.0,93907.0,0.010651]
[1767681222671,0.19106253,93923.0,93907.0,0.010651]
[1767681222873,0.010649,93922.0,93907.0,0.010651]
[1767681223072,0.01065,93920.0,93904.0,0.010651]
[1767681223473,0.02053905,93920.0,93904.0,0.010651]
[1767681223675,0.09065348,93916.0,93898.0,0.010652]
[1767681223974,0.11119253,93916.0,93900.0,0.010652]
[1767681224276,0.10054253,93912.0,93901.0,0.16077038]
[1767681224773,0.10054253,93912.0,93899.0,0.15934542]
[1767681224976,0.10054253,93912.0,93897.0,0.010652]
[1767681225165,0.10054253,93912.0,93900.0,0.15934542]
[1767681225566,0.10054253,93912.0,93897.0,0.010652]
[1767681225875,0.00988905,93911.0,93901.0,0.15886758]
[1767681226268,0.00988905,93911.0,93897.0,0.010652]
[1767681226672,0.00988905,93911.0,93901.0,0.15921013]
[1767681226873,0.00988905,93911.0,93898.0,0.15921013]
[1767681227073,0.00988905,93911.0,93897.0,0.010652]
[1767681227372,0.00988905,93911.0,93880.0,0.23184693]
[1767681227373,0.09729638,93908.0,93901.0,0.04256723]
[1767681227569,0.09729638,93908.0,93898.0,0.15921013]
[1767681227762,0.01065,93912.0,93897.0,0.15979831]
[1767681227970,0.01065,93912.0,93896.0,0.15979831]
[1767681228277,0.010651,93909.0,93895.0,0.0763272]
[1767681228571,0.09065348,93909.0,93895.0,0.0763272]
[1767681228977,0.10130448,93909.0,93895.0,0.0763272]
[1767681229372,0.010651,93909.0,93894.0,0.0763272]
[1767681229567,0.18117348,93912.0,93894.0,0.0763272]
[1767681229764,0.09065348,93911.0,93894.0,0.16079286]
[1767681229966,0.010652,93898.0,93891.0,0.14926257]
[1767681230171,0.010652,93900.0,93891.0,0.02905529]
[1767681230372,0.010652,93900.0,93883.0,0.27216546]
[1767681230674,0.010652,93903.0,93885.0,0.010653]
[1767681230874,0.010652,93903.0,93887.0,0.010653]
[1767681231179,0.0734506,93904.0,93889.0,0.010653]
[1767681231180,0.00419239,93904.0,93889.0,0.010653]
[1767681232581,0.01484339,93904.0,93889.0,0.010653]
[1767681233384,0.010651,93904.0,93886.0,0.10397067]
[1767681233574,0.00380805,93906.0,93889.0,0.010653]
[1767681234194,0.010651,93905.0,93889.0,0.010653]
[1767681235272,0.010651,93905.0,93886.0,0.10397067]
[1767681235273,0.00380805,93906.0,93893.0,0.010653]
[1767681235472,0.00380805,93906.0,93890.0,0.010653]
[1767681235673,0.010651,93905.0,93889.0,0.010653]
[1767681235972,0.010651,93905.0,93889.0,0.10178669]
[1767681237486,0.010651,93905.0,93891.0,0.010653]
[1767681237986,0.010651,93905.0,93889.0,0.09113369]
[1767681238187,0.010652,93903.0,93889.0,0.09113369]
[1767681238491,0.010652,93901.0,93889.0,0.09113369]
[1767681238883,0.010652,93899.0,93889.0,0.09113369]
[1767681239082,0.010652,93899.0,93885.0,0.0846208]
[1767681239285,0.00219055,93897.0,93883.0,0.09052]
[1767681239479,0.010652,93896.0,93883.0,0.09052]
[1767681239781,0.010652,93899.0,93884.0,0.09113369]
[1767681240172,0.00219922,93904.0,93887.0,0.010653]
[1767681240379,0.00219922,93908.0,93886.0,0.1017583]
[1767681240674,0.00219922,93908.0,93887.0,0.1124113]
[1767681241076,0.010652,93901.0,93887.0,0.1124113]
[1767681241282,0.00208935,93906.0,93887.0,0.09113369]
[1767681241490,0.010652,93899.0,93887.0,0.09113369]
[1767681241980,0.010652,93897.0,93887.0,0.09113369]
[1767681242381,0.010652,93895.0,93885.0,0.08412755]
[1767681242578,0.010652,93895.0,93883.0,0.09052]
[1767681242775,0.010652,93895.0,93883.0,0.18057888]
[1767681243174,0.010652,93895.0,93884.0,0.09005888]
[1767681243588,0.010652,93898.0,93884.0,0.09005888]
[1767681243891,0.010652,93896.0,93884.0,0.09005888]
[1767681244189,0.010652,93899.0,93884.0,0.10071288]
[1767681244790,0.09056,93900.0,93885.0,0.010653]
[1767681245088,0.09056,93899.0,93888.0,0.09005888]
[1767681245286,0.09056,93899.0,93890.0,0.010653]
[1767681246387,0.09056,93899.0,93888.0,0.09005888]
[1767681246784,0.09056,93899.0,93888.0,0.10038894]
[1767681248595,0.09056,93900.0,93888.0,0.10038894]
[1767681248994,0.09056,93900.0,93889.0,0.10071188]
[1767681250692,0.09056,93900.0,93889.0,0.09005888]
[1767681251808,0.09056,93900.0,93889.0,0.10071188]
[1767681252602,0.09056,93900.0,93889.0,0.09005888]
[1767681254110,0.00025903,93909.0,93889.0,0.09005888]
[1767681254306,0.00025903,93907.0,93889.0,0.09005888]
[1767681255004,0.010652,93902.0,93889.0,0.09005888]
[1767681256003,0.09056,93908.0,93889.0,0.09005888]
[1767681256409,0.010652,93901.0,93887.0,0.010653]
[1767681256606,0.053238,93940.0,93884.0,0.09005888]
[1767681256607,0.09808045,93900.0,93884.0,0.09005888]
[1767681256811,0.18864045,93900.0,93884.0,0.09005888]
[1767681257112,0.09056,93900.0,93884.0,0.09005888]
[1767681257411,0.06027541,93907.0,93886.0,0.09005888]
[1767681257611,0.09056,93906.0,93886.0,0.09005888]
[1767681257809,0.010652,93899.0,93886.0,0.09005888]
[1767681258904,0.09808045,93900.0,93886.0,0.10071188]
[1767681259110,0.09808045,93900.0,93888.0,0.010653]
[1767681259413,0.010651,93903.0,93891.0,0.09005888]
[1767681260214,0.010652,93901.0,93891.0,0.09005888]
[1767681260512,0.010652,93901.0,93887.0,0.010653]
[1767681260713,0.09808045,93900.0,93887.0,0.010653]
[1767681261113,0.09808045,93900.0,93886.0,0.09005888]
[1767681262006,0.18864045,93900.0,93888.0,0.010653]
[1767681265913,0.09056,93900.0,93888.0,0.010653]
[1767681266120,0.18864045,93900.0,93886.0,0.09005888]
[1767681267113,0.18864045,93900.0,93887.0,0.010653]
[1767681270118,0.18864045,93900.0,93886.0,0.09005888]
[1767681270318,0.09056,93900.0,93889.0,0.010653]
[1767681271113,0.010652,93902.0,93889.0,0.010653]
[1767681271420,0.09056,93901.0,93889.0,0.010653]
[1767681272222,0.010652,93902.0,93889.0,0.010653]
[1767681272417,0.09056,93901.0,93889.0,0.010653]
[1767681273422,0.10873245,93900.0,93886.0,0.10265367]
[1767681274223,0.010652,93900.0,93886.0,0.10265367]
[1767681274722,0.10873245,93900.0,93886.0,0.10265367]
[1767681277026,0.10873245,93900.0,93888.0,0.010653]
[1767681277529,0.10873245,93900.0,93886.0,0.09200067]
[1767681277712,0.010652,93898.0,93886.0,0.09200067]
[1767681277917,0.09808045,93900.0,93887.0,0.010653]
[1767681278418,0.09808045,93900.0,93886.0,0.09200067]
[1767681278419,0.010652,93899.0,93886.0,0.09200067]
[1767681280418,0.010652,93897.0,93886.0,0.09200067]
[1767681281128,0.09808045,93900.0,93886.0,0.10265367]
[1767681281527,0.010652,93899.0,93886.0,0.10265367]
[1767681282423,0.10873245,93900.0,93887.0,0.010653]
[1767681282631,0.10873245,93900.0,93886.0,0.09200067]
[1767681283525,0.010652,93898.0,93886.0,0.09200067]
[1767681285628,0.10873245,93900.0,93886.0,0.10265367]
[1767681286433,0.010652,93898.0,93886.0,0.09200067]
[1767681286932,0.010652,93896.0,93886.0,0.09200067]
[1767681287133,0.010652,93899.0,93886.0,0.09200067]
[1767681287729,0.09056,93901.0,93888.0,0.09200067]
[1767681287929,0.09808045,93900.0,93888.0,0.10163886]
[1767681288127,0.09808045,93900.0,93888.0,0.09200067]
[1767681288431,0.09056,93899.0,93888.0,0.09200067]
[1767681289134,0.09056,93899.0,93888.0,0.10265367]
[1767681291035,0.09056,93899.0,93890.0,0.10265367]
[1767681292939,0.09056,93899.0,93890.0,0.09200067]
[1767681294443,0.09056,93907.0,93902.0,0.10163886]
[1767681294640,0.00939478,93928.0,93908.0,0.10163886]
[1767681294836,0.09056,93924.0,93910.0,0.09808045]
[1767681295036,0.09056,93924.0,93909.0,0.00963819]
[1767681295338,0.010649,93922.0,93909.0,0.00963819]
[1767681295541,0.010649,93921.0,93909.0,0.00963819]
[1767681295736,0.010649,93921.0,93908.0,0.09200067]
[1767681296342,0.09056,93924.0,93909.0,0.010651]
[1767681296644,0.010649,93923.0,93909.0,0.010651]
[1767681297532,0.09056,93922.0,93909.0,0.010651]
[1767681300345,0.010649,93921.0,93908.0,0.09200067]
[1767681300556,0.010649,93921.0,93906.0,0.01978868]
[1767681301147,0.01065,93919.0,93906.0,0.00913768]
[1767681301343,0.01065,93914.0,93899.0,0.010652]
[1767681301537,0.01065,93912.0,93896.0,0.010652]
[1767681301737,0.09808045,93910.0,93896.0,0.010652]
[1767681301934,0.01126499,93903.0,93894.0,0.11884879]
[1767681302144,0.10025705,93901.0,93886.0,0.010653]
[1767681302345,0.09911399,93899.0,93883.0,0.17046042]
[1767681302852,0.01126499,93897.0,93880.0,0.010654]
[1767681303044,0.010652,93895.0,93877.0,0.010654]
[1767681303546,0.010653,93889.0,93875.0,0.01108961]
[1767681303746,0.010653,93889.0,93873.0,0.09920738]
[1767681303944,0.010653,93889.0,93865.0,0.07635657]
[1767681303945,0.01126499,93875.0,93858.0,0.07635657]
[1767681304142,0.09056,93882.0,93860.0,0.01108961]
[1767681304449,0.09056,93882.0,93862.0,0.01108961]
[1767681306155,0.09056,93882.0,93870.0,0.09808045]
[1767681307150,0.09056,93882.0,93871.0,0.01108961]
[1767681309342,0.09056,93883.0,93870.0,0.09808045]
[1767681310251,0.01126499,93888.0,93870.0,0.09808045]
[1767681310451,0.09056,93887.0,93870.0,0.09808045]
[1767681310656,0.09056,93887.0,93867.0,0.12095199]
[1767681310851,0.01126499,93888.0,93867.0,0.12095199]
[1767681311053,0.09056,93887.0,93867.0,0.12095199]
[1767681311555,0.11247799,93887.0,93867.0,0.12095199]
[1767681311748,0.01126499,93886.0,93867.0,0.12095199]
[1767681311949,0.010654,93885.0,93867.0,0.12095199]
[1767681312143,0.010654,93885.0,93867.0,0.11029699]
[1767681312447,0.0215809,93882.0,93863.0,0.01108961]
[1767681312955,0.010654,93882.0,93864.0,0.02174561]
[1767681313155,0.12054036,93885.0,93864.0,0.02174561]
[1767681314264,0.010654,93883.0,93864.0,0.02174561]
[1767681315153,0.01071698,93884.0,93868.0,0.010655]
[1767681315559,0.02137098,93884.0,93868.0,0.010655]
[1767681319063,0.02137098,93884.0,93865.0,0.010656]
[1767681319251,0.01071698,93884.0,93864.0,0.01108961]
[1767681319451,0.01071698,93884.0,93868.0,0.010655]
[1767681319851,0.010653,93891.0,93872.0,0.11029699]
[1767681320051,0.02028513,93889.0,93873.0,0.010655]
[1767681320254,0.02028513,93887.0,93870.0,0.010655]
[1767681320658,0.09056,93886.0,93870.0,0.010655]
[1767681320958,0.09056,93885.0,93870.0,0.010655]
[1767681321262,0.09056,93885.0,93867.0,0.01108961]
[1767681321461,0.10004191,93885.0,93866.0,0.10986338]
[1767681321862,0.010654,93883.0,93866.0,0.10986338]
[1767681322063,0.010654,93881.0,93866.0,0.010656]
[1767681322963,0.0088434,93883.0,93866.0,0.010656]
[1767681323265,0.010654,93882.0,93866.0,0.010656]
[1767681323968,0.20032699,93885.0,93866.0,0.11029699]
[1767681324371,0.20894117,93885.0,93866.0,0.11029699]
[1767681324956,0.20894117,93885.0,93870.0,0.010655]
[1767681325156,0.19828817,93885.0,93870.0,0.010655]
[1767681325971,0.09056,93885.0,93873.0,0.010655]
[1767681326162,0.0189288,93889.0,93873.0,0.010655]
[1767681326163,0.010653,93889.0,93875.0,0.010655]
[1767681326367,0.09056,93884.0,93875.0,0.010655]
[1767681326871,0.09056,93884.0,93873.0,0.01108961]
[1767681327165,0.09056,93884.0,93872.0,0.10986238]
[1767681327769,0.09056,93884.0,93872.0,0.12095199]
[1767681328272,0.09056,93884.0,93874.0,0.010655]
[1767681328566,0.010653,93892.0,93872.0,0.11029699]
[1767681328772,0.09056,93891.0,93872.0,0.11029699]
[1767681328966,0.010653,93890.0,93872.0,0.11029699]
[1767681329169,0.010653,93890.0,93873.0,0.010655]
[1767681330877,0.010653,93890.0,93875.0,0.010655]
[1767681334889,0.010654,93881.0,93862.0,0.09003245]
[1767681335075,0.0069093,93881.0,93867.0,0.010655]
[1767681335277,0.010654,93880.0,93867.0,0.010655]
[1767681335575,0.010654,93880.0,93864.0,0.010656]
[1767681335979,0.010654,93880.0,93862.0,0.09003245]
[1767681336176,0.0069093,93881.0,93867.0,0.010655]
[1767681336886,0.010654,93882.0,93867.0,0.010655]
[1767681337985,0.010654,93882.0,93863.0,0.01436556]
[1767681338586,0.00671441,93884.0,93863.0,0.10439801]
[1767681338784,0.10232965,93885.0,93870.0,0.010655]
[1767681341190,0.10232965,93885.0,93865.0,0.01436556]
[1767681341393,0.10232965,93885.0,93866.0,0.01436556]
[1767681343192,0.10232965,93885.0,93869.0,0.010655]
[1767681343394,0.010654,93883.0,93869.0,0.010655]
[1767681345790,0.09167565,93885.0,93869.0,0.010655]
[1767681346190,0.10232965,93885.0,93869.0,0.010655]
[1767681346491,0.010654,93883.0,93869.0,0.010655]
[1767681350489,0.09167565,93882.0,93869.0,0.010655]
[1767681350694,0.010655,93874.0,93859.0,0.09773703]
[1767681350989,0.010655,93874.0,93859.0,0.010656]
[1767681351196,0.010655,93874.0,93856.0,0.10492556]
[1767681351197,0.010655,93874.0,93861.0,0.010656]
[1767681352395,0.010655,93874.0,93859.0,0.01436556]
[1767681352696,0.010655,93874.0,93859.0,0.09885825]
[1767681352990,0.010654,93883.0,93871.0,0.01436556]
[1767681353196,0.010653,93886.0,93871.0,0.01436556]
[1767681353386,0.09056,93885.0,93871.0,0.01436556]
[1767681353788,0.010654,93884.0,93871.0,0.01436556]
[1767681353987,0.010654,93884.0,93870.0,0.10068745]
[1767681354998,0.010654,93880.0,93867.0,0.01436556]
[1767681357797,0.010654,93883.0,93868.0,0.010655]
[1767681359502,0.09056,93885.0,93873.0,0.010655]
[1767681359701,0.110653,93888.0,93873.0,0.010655]
[1767681360000,0.09056,93887.0,93873.0,0.010655]
[1767681361003,0.09056,93886.0,93873.0,0.010655]
[1767681361901,0.101213,93886.0,93870.0,0.010655]
[1767681362907,0.09056,93886.0,93872.0,0.010655]
[1767681363403,0.101213,93886.0,93872.0,0.010655]
[1767681363607,0.10542848,93886.0,93872.0,0.010655]
[1767681369395,0.00306817,93885.0,93872.0,0.010655]
[1767681369896,0.0029383,93883.0,93866.0,0.010656]
[1767681370102,0.010654,93879.0,93864.0,0.010656]
[1767681370303,0.0029383,93880.0,93866.0,0.010656]
[1767681370507,0.0135923,93880.0,93866.0,0.010656]
[1767681370707,0.010654,93880.0,93866.0,0.010656]
[1767681371414,0.09759221,93884.0,93866.0,0.010656]
[1767681373212,0.010654,93881.0,93866.0,0.010656]
[1767681373509,0.09759221,93884.0,93863.0,0.01282126]
[1767681373712,0.09315241,93886.0,93868.0,0.010655]
[1767681374015,0.00242237,93885.0,93868.0,0.010655]
[1767681374211,0.00242237,93885.0,93870.0,0.09812303]
[1767681375009,0.010654,93883.0,93870.0,0.010655]
[1767681375209,0.010654,93883.0,93870.0,0.10877803]
[1767681375413,0.00242237,93885.0,93870.0,0.10877803]
[1767681379519,0.101213,93886.0,93870.0,0.10877803]
[1767681380015,0.101213,93886.0,93870.0,0.09812303]
[1767681380817,0.09056,93885.0,93870.0,0.09812303]
[1767681381016,0.09056,93885.0,93870.0,0.10877803]
[1767681381422,0.010654,93884.0,93867.0,0.010655]
[1767681381614,0.010654,93884.0,93870.0,0.09812303]
[1767681382910,0.010654,93882.0,93870.0,0.09812303]
[1767681383518,0.010654,93882.0,93866.0,0.01282126]
[1767681383818,0.00162424,93884.0,93865.0,0.09642135]
[1767681384216,0.010654,93883.0,93868.0,0.010655]
[1767681387218,0.010654,93883.0,93866.0,0.01282126]
[1767681387219,0.010654,93881.0,93866.0,0.01282126]
[1767681387409,0.010654,93881.0,93867.0,0.01282126]
[1767681387811,0.010654,93881.0,93867.0,0.02347726]
[1767681389921,0.010654,93879.0,93864.0,0.010656]
[1767681390214,0.00094951,93879.0,93860.0,0.09642135]
[1767681390414,0.00094951,93877.0,93859.0,0.08384793]
[1767681390610,0.010655,93870.0,93855.0,0.11989961]
[1767681390917,0.010655,93870.0,93856.0,0.16045183]
[1767681391918,0.010655,93873.0,93857.0,0.010657]
[1767681392414,0.010655,93876.0,93861.0,0.010656]
[1767681394018,0.00076623,93878.0,93861.0,0.010656]
[1767681394322,0.00076623,93878.0,93858.0,0.01145324]
[1767681394323,0.010655,93875.0,93860.0,0.09812303]
[1767681394512,0.0004692,93874.0,93855.0,0.09642135]
[1767681394718,0.010656,93867.0,93854.0,0.09066074]
[1767681395020,0.010656,93864.0,93856.0,0.1596818]
[1767681395218,0.010656,93864.0,93854.0,0.00010074]
[1767681395418,0.010656,93862.0,93854.0,0.00010074]
[1767681395616,0.010657,93855.0,93843.0,0.09554682]
[1767681395924,0.010657,93855.0,93842.0,0.10647526]
[1767681396220,0.010657,93858.0,93842.0,0.10647526]
[1767681396423,0.10877903,93860.0,93843.0,0.010658]
[1767681396615,0.010657,93858.0,93843.0,0.010658]
[1767681397216,0.00011788,93859.0,93842.0,0.10647526]
[1767681397418,0.010657,93858.0,93842.0,0.11713326]
[1767681397618,0.010657,93858.0,93844.0,0.010658]
[1767681397817,0.00011788,93859.0,93844.0,0.010658]
[1767681398324,0.01077388,93859.0,93844.0,0.02211124]
[1767681398720,0.01077388,93859.0,93844.0,0.01145324]
[1767681399223,0.010657,93857.0,93844.0,0.01145324]
[1767681399824,0.00011788,93859.0,93842.0,0.09502202]
[1767681400023,0.010657,93851.0,93842.0,0.09502202]
[1767681400225,0.010657,93851.0,93839.0,0.01358456]
[1767681400424,0.010657,93851.0,93839.0,0.10055069]
[1767681400620,0.010657,93851.0,93840.0,0.10647526]
[1767681400826,0.00011788,93859.0,93845.0,0.09502202]
[1767681401127,0.00011788,93859.0,93848.0,0.01145324]
[1767681401527,0.00011788,93859.0,93847.0,0.09502202]
[1767681403430,0.01077388,93859.0,93847.0,0.09502202]
[1767681403627,0.010657,93857.0,93844.0,0.01145324]
[1767681404029,0.00011788,93859.0,93844.0,0.01145324]
[1767681404330,0.00011788,93859.0,93842.0,0.09502202]
[1767681405729,0.00011788,93859.0,93842.0,0.10647526]
[1767681406132,0.010657,93857.0,93842.0,0.10647526]
[1767681406431,0.010657,93855.0,93842.0,0.10647526]
[1767681407132,0.010657,93855.0,93843.0,0.01145324]
[1767681407433,0.010657,93857.0,93843.0,0.01145324]
[1767681408928,0.010657,93857.0,93844.0,0.010658]
[1767681409234,0.00011788,93859.0,93845.0,0.01145324]
[1767681409443,0.010657,93858.0,93845.0,0.02211124]
[1767681409642,0.00011788,93859.0,93845.0,0.02211124]
[1767681410934,0.01077388,93859.0,93845.0,0.02211124]
[1767681414144,0.010657,93857.0,93845.0,0.02211124]
[1767681415145,0.010657,93855.0,93845.0,0.01145324]
[1767681415342,0.010657,93855.0,93844.0,0.09502202]
[1767681416445,0.010657,93855.0,93844.0,0.10604426]
[1767681417546,0.010657,93858.0,93845.0,0.010658]
[1767681417846,0.010657,93858.0,93845.0,0.01102224]
[1767681420152,0.00011788,93859.0,93848.0,0.01102224]
[1767681421155,0.00011788,93859.0,93849.0,0.01035824]
[1767681422058,0.00011788,93859.0,93848.0,0.010658]
[1767681424048,0.00011788,93859.0,93848.0,0.02101624]
[1767681424250,0.00011788,93859.0,93849.0,0.01035824]
[1767681426550,0.010657,93856.0,93845.0,0.01035824]
[1767681426760,0.00011788,93859.0,93846.0,0.01035824]
[1767681427056,0.00011788,93859.0,93846.0,0.10485429]
[1767681427255,0.00011788,93859.0,93847.0,0.01035824]
[1767681428346,0.010657,93858.0,93847.0,0.01035824]
[1767681430059,0.00011788,93859.0,93848.0,0.01035824]
[1767681431048,0.01077388,93859.0,93848.0,0.01035824]
[1767681431855,0.09056,93863.0,93853.0,0.10485429]
[1767681432058,0.010656,93862.0,93854.0,0.01035824]
[1767681432553,0.010656,93862.0,93853.0,0.09449605]
[1767681434957,0.010656,93860.0,93853.0,0.09449605]
[1767681436262,0.101216,93863.0,93853.0,0.09449605]
[1767681437062,0.010656,93861.0,93853.0,0.09449605]
[1767681438357,0.010656,93862.0,93853.0,0.09449605]
[1767681438565,0.010656,93860.0,93853.0,0.09449605]
[1767681439468,0.010656,93860.0,93850.0,0.01035824]
[1767681439860,0.010656,93860.0,93851.0,0.01035824]
[1767681440367,0.101216,93863.0,93851.0,0.01035824]
[1767681440569,0.010656,93861.0,93851.0,0.01035824]
[1767681441065,0.010654,93880.0,93854.0,0.01035824]
[1767681441270,0.0057316,93889.0,93864.0,0.01035824]
[1767681441566,0.0906,93886.0,93876.0,0.01035824]
[1767681441966,0.0906,93886.0,93878.0,0.01035824]
[1767681442265,0.010653,93885.0,93878.0,0.01035824]
[1767681442661,0.010653,93885.0,93877.0,0.09449605]
[1767681449072,0.0906,93886.0,93877.0,0.10485429]
[1767681449277,0.07045412,93886.0,93879.0,0.10485429]
[1767681449677,0.07045412,93886.0,93879.0,0.09449605]
[1767681451673,0.010653,93885.0,93879.0,0.09449605]
[1767681452173,0.07045412,93886.0,93861.0,0.00979406]
[1767681452374,0.00991269,93881.0,93862.0,0.00979406]
[1767681452575,0.010655,93875.0,93862.0,0.00979406]
[1767681454376,0.010655,93876.0,93864.0,0.00979406]
[1767681456482,0.010655,93874.0,93861.0,0.010656]
[1767681457071,0.010655,93874.0,93862.0,0.00979406]
[1767681457483,0.010654,93877.0,93862.0,0.00979406]
[1767681458582,0.010655,93875.0,93862.0,0.00979406]
[1767681458878,0.010654,93877.0,93864.0,0.00979406]
[1767681459086,0.07045412,93886.0,93870.0,0.00979406]
[1767681459381,0.010654,93884.0,93870.0,0.00979406]
[1767681460182,0.010654,93884.0,93871.0,0.00979406]
[1767681460983,0.07045412,93886.0,93871.0,0.00979406]
[1767681461483,0.010655,93875.0,93867.0,0.00979406]
[1767681461785,0.010655,93875.0,93865.0,0.09167344]
[1767681462484,0.02056569,93885.0,93865.0,0.09167344]
[1767681462885,0.010655,93874.0,93865.0,0.09167344]
[1767681463082,0.010654,93883.0,93865.0,0.09167344]
[1767681463286,0.010654,93883.0,93863.0,0.00979406]
[1767681463287,0.010655,93869.0,93863.0,0.00979406]
[1767681463488,0.00991269,93882.0,93863.0,0.00979406]
[1767681463880,0.010655,93871.0,93863.0,0.00979406]
[1767681464687,0.00991269,93882.0,93863.0,0.00979406]
[1767681464688,0.010655,93874.0,93863.0,0.00979406]
[1767681466292,0.010655,93872.0,93863.0,0.00979406]
[1767681466490,0.010655,93875.0,93863.0,0.00979406]
[1767681466691,0.010655,93873.0,93863.0,0.00979406]
[1767681467291,0.010655,93871.0,93863.0,0.00979406]
[1767681467688,0.00991269,93882.0,93863.0,0.00979406]
[1767681467883,0.00991269,93882.0,93860.0,0.1014675]
[1767681467884,0.10260179,93882.0,93860.0,0.1014675]